[Event "African Championship"]
[Site "followchess.com"]
[Date "2021.05.25"]
[Round "7"]
[White "Abdulraheem Abdulrahman Akint"]
[Black "Oragwu, Chukwunonso"]
[Result "1-0"]
[ECO "B38"]
[WhiteElo "2264"]
[BlackElo "2241"]
[PlyCount "81"]
[EventDate "2021.??.??"]
[TimeControl "7200+30"]
[WhiteClock "0:30:43"]
[BlackClock "0:46:37"]

1. e4 {[%emt 0:29:33]} c5 {[%emt 0:30:22]} 2. Nf3 {[%emt 0:00:51]} Nc6 {
[%emt 0:00:26]} 3. d4 {[%emt 0:00:12]} cxd4 {[%emt 0:00:10]} 4. Nxd4 {[%emt 0:
00:07]} g6 {[%emt 0:00:18]} 5. c4 {[%emt 0:04:43]} Bg7 {[%emt 0:00:10]} 6. Be3
{[%emt 0:00:20]} d6 {[%emt 0:01:04]} 7. Nc3 {[%emt 0:00:22]} Nf6 {[%emt 0:00:
16]} 8. Be2 {[%emt 0:00:37]} O-O {[%emt 0:00:23]} 9. Nc2 {[%emt 0:01:34]} Be6 {
[%emt 0:01:36]} 10. O-O {[%emt 0:00:42]} Nd7 {[%emt 0:03:09]} 11. Qd2 {[%emt 0:
01:10]} a5 {[%emt 0:02:48]} 12. Bh6 {[%emt 0:01:22]} Nc5 {[%emt 0:01:10]} 13.
Bxg7 {[%emt 0:00:32]} Kxg7 {[%emt 0:00:09]} 14. Ne3 {[%emt 0:01:29]} a4 {
[%emt 0:14:12]} 15. Rac1 {[%emt 0:09:08]} Qa5 {[%emt 0:00:50]} 16. Ned5 {
[%emt 0:02:59]} Rad8 {[%emt 0:03:35]} 17. Rfe1 {[%emt 0:02:23]} Bc8 {[%emt 0:
01:14]} 18. Qg5 {[%emt 0:10:19]} f6 {[%emt 0:02:13]} 19. Qg3 {[%emt 0:00:39]}
e6 {[%emt 0:02:54]} 20. Ne3 {[%emt 0:01:46]} Nd4 {[%emt 0:10:39]} 21. Bf1 {
[%emt 0:01:22]} e5 {[%emt 0:07:26]} 22. Nc2 {[%emt 0:07:02]} Nce6 {[%emt 0:01:
57]} 23. Nxd4 {[%emt 0:01:17]} Nxd4 {[%emt 0:00:57]} 24. Ne2 {[%emt 0:01:49]}
Ne6 {[%emt 0:01:03]} 25. Red1 {[%emt 0:00:51]} Nc5 {[%emt 0:01:33]} 26. Nc3 {
[%emt 0:01:40]} Be6 {[%emt 0:04:19]} 27. f3 {[%emt 0:08:52]} Rd7 {[%emt 0:07:
09]} 28. Nb5 {[%emt 0:00:53]} Qb6 {[%emt 0:01:17]} 29. Qf2 {[%emt 0:01:37]} f5
{[%emt 0:01:08]} 30. exf5 {[%emt 0:01:57]} Bxf5 {[%emt 0:03:57]} 31. Rd2 {
[%emt 0:03:16]} Rf6 {[%emt 0:01:11]} 32. Rcd1 {[%emt 0:01:56]} Qc6 {[%emt 0:04:
08]} 33. Qe3 {[%emt 0:01:10]} Rd8 {[%emt 0:04:29]} 34. Rd5 {[%emt 0:03:35]} Qb6
{[%emt 0:07:11]} 35. g4 {[%emt 0:06:02]} Bc8 {[%emt 0:04:13]} 36. g5 {[%emt 0:
03:52]} Re6 {[%emt 0:03:00]} 37. Bh3 {[%emt 0:03:05]} Qa5 {[%emt 0:05:19]} 38.
Bxe6 {[%emt 0:01:46]} Bxe6 {[%emt 0:00:31]} 39. Rxd6 {[%emt 0:00:17]} Rxd6 40.
Qxe5+ {[%emt 0:00:00]} Kg8 {[%emt 0:00:00]} 41. Qxd6 {[%emt 0:00:00]} 1-0

[Event "African Championship"]
[Site "followchess.com"]
[Date "2021.05.25"]
[Round "7"]
[White "Abrantes, Persson"]
[Black "Mulenga, Prince Daniel"]
[Result "1/2-1/2"]
[ECO "A05"]
[WhiteElo "2018"]
[BlackElo "2246"]
[PlyCount "56"]
[EventDate "2021.??.??"]
[TimeControl "7200+30"]
[WhiteClock "0:49:34"]
[BlackClock "0:12:59"]

1. Nf3 {[%emt 0:34:34]} Nf6 {[%emt 0:29:30]} 2. g3 {[%emt 0:00:18]} g6 {
[%emt 0:00:01]} 3. Bg2 {[%emt 0:00:01]} Bg7 {[%emt 0:00:01]} 4. O-O {[%emt 0:
00:02]} O-O {[%emt 0:00:01]} 5. d3 {[%emt 0:00:40]} c5 6. e4 {[%emt 0:01:28]}
Nc6 {[%emt 0:00:32]} 7. Nc3 {[%emt 0:00:47]} d6 {[%emt 0:00:21]} 8. h3 {
[%emt 0:00:03]} e5 {[%emt 0:01:14]} 9. Be3 {[%emt 0:01:36]} Nd4 {[%emt 0:00:16]
} 10. Nh2 {[%emt 0:00:08]} Rb8 {[%emt 0:00:31]} 11. Qd2 {[%emt 0:01:07]} Nh5 {
[%emt 0:00:19]} 12. Nd5 {[%emt 0:06:55]} Ne6 {[%emt 0:02:19]} 13. Ng4 {[%emt 0:
12:25]} f5 {[%emt 0:04:59]} 14. exf5 {[%emt 0:00:30]} gxf5 {[%emt 0:00:06]} 15.
Nh6+ {[%emt 0:00:32]} Kh8 {[%emt 0:01:37]} 16. Nxf5 {[%emt 0:01:17]} Rxf5 {
[%emt 0:00:01]} 17. g4 {[%emt 0:00:04]} Nef4 {[%emt 0:18:12]} 18. gxf5 {
[%emt 0:19:01]} Qg5 {[%emt 0:02:58]} 19. Bxf4 {[%emt 0:02:38]} exf4 {[%emt 0:
00:20]} 20. Qe2 {[%emt 0:13:46]} Bxf5 {[%emt 0:00:02]} 21. Qf3 {[%emt 0:05:35]}
Bxb2 {[%emt 0:01:58]} 22. Rae1 {[%emt 0:01:53]} Be5 {[%emt 0:00:01]} 23. Kh1 {
[%emt 0:01:35]} Rg8 {[%emt 0:00:11]} 24. Rg1 {[%emt 0:01:04]} Be6 {[%emt 0:13:
03]} 25. Nc7 {[%emt 0:04:44]} Bc8 {[%emt 0:00:46]} 26. Nd5 {[%emt 0:04:00]} Be6
{[%emt 0:00:02]} 27. Nc7 {[%emt 0:00:03]} Bc8 {[%emt 0:00:04]} 28. Nd5 {
[%emt 0:04:15]} Be6 {[%emt 0:05:01]} 1/2-1/2

[Event "African Championship"]
[Site "followchess.com"]
[Date "2021.05.25"]
[Round "7"]
[White "Adly, Ahmed"]
[Black "Mwale, Joseph"]
[Result "1-0"]
[ECO "A46"]
[WhiteElo "2615"]
[BlackElo "2148"]
[PlyCount "57"]
[EventDate "2021.??.??"]
[TimeControl "7200+30"]
[WhiteClock "0:37:32"]
[BlackClock "0:51:39"]

1. d4 {[%emt 0:34:38]} Nf6 {[%emt 0:29:41]} 2. Nf3 {[%emt 0:00:05]} e6 {
[%emt 0:00:06]} 3. g3 {[%emt 0:00:03]} d5 {[%emt 0:00:09]} 4. Bg2 {[%emt 0:00:
06]} c5 {[%emt 0:00:07]} 5. O-O {[%emt 0:00:29]} Nc6 {[%emt 0:00:10]} 6. c4 {
[%emt 0:00:05]} dxc4 {[%emt 0:00:09]} 7. Ne5 {[%emt 0:00:59]} Nxe5 {[%emt 0:01:
03]} 8. dxe5 {[%emt 0:00:05]} Qxd1 {[%emt 0:00:10]} 9. Rxd1 {[%emt 0:00:03]}
Nd5 {[%emt 0:00:14]} 10. Na3 {[%emt 0:10:28]} Be7 {[%emt 0:07:10]} 11. Nxc4 {
[%emt 0:04:36]} O-O {[%emt 0:01:57]} 12. e4 {[%emt 0:09:14]} Nb4 {[%emt 0:02:
25]} 13. a3 {[%emt 0:00:24]} Nc6 {[%emt 0:01:26]} 14. Be3 {[%emt 0:01:56]} b6 {
[%emt 0:01:10]} 15. f4 {[%emt 0:00:47]} Ba6 {[%emt 0:00:29]} 16. Nd6 {[%emt 0:
00:02]} Rfd8 {[%emt 0:12:03]} 17. b4 {[%emt 0:08:26]} c4 {[%emt 0:01:08]} 18.
b5 {[%emt 0:05:20]} Bxd6 {[%emt 0:00:39]} 19. Rxd6 {[%emt 0:00:07]} Bxb5 {
[%emt 0:01:26]} 20. a4 {[%emt 0:00:23]} Rxd6 {[%emt 0:00:11]} 21. exd6 {
[%emt 0:00:06]} Ba6 {[%emt 0:00:03]} 22. e5 {[%emt 0:00:07]} Bb7 {[%emt 0:01:
05]} 23. Rc1 {[%emt 0:00:36]} Na5 {[%emt 0:18:28]} 24. Bxb7 {[%emt 0:00:33]}
Nxb7 {[%emt 0:00:05]} 25. Rxc4 {[%emt 0:00:03]} f6 {[%emt 0:09:37]} 26. Rc7 {
[%emt 0:00:08]} Na5 {[%emt 0:00:18]} 27. Bd2 {[%emt 0:01:41]} Rd8 {[%emt 0:04:
09]} 28. Bxa5 {[%emt 0:01:09]} bxa5 {[%emt 0:00:50]} 29. f5 {[%emt 0:00:12]}
1-0

[Event "African Championship"]
[Site "followchess.com"]
[Date "2021.05.25"]
[Round "7"]
[White "Ajibola, Olanrewaju"]
[Black "Nyambalo, Joseph Xavier"]
[Result "1-0"]
[ECO "A48"]
[WhiteElo "2337"]
[BlackElo "2032"]
[PlyCount "85"]
[EventDate "2021.??.??"]
[TimeControl "7200+30"]
[WhiteClock "0:28:18"]
[BlackClock "0:55:46"]

1. d4 {[%emt 0:29:39]} Nf6 {[%emt 0:29:34]} 2. Nf3 {[%emt 0:00:15]} g6 {
[%emt 0:00:15]} 3. Bg5 {[%emt 0:00:57]} Bg7 {[%emt 0:00:09]} 4. Nbd2 {[%emt 0:
00:11]} c5 {[%emt 0:01:18]} 5. Bxf6 {[%emt 0:01:45]} Bxf6 {[%emt 0:00:21]} 6.
Ne4 {[%emt 0:00:07]} Bxd4 {[%emt 0:07:29]} 7. Nxd4 {[%emt 0:00:38]} cxd4 {
[%emt 0:00:01]} 8. Qxd4 {[%emt 0:00:15]} O-O {[%emt 0:00:05]} 9. O-O-O {
[%emt 0:02:05]} Nc6 {[%emt 0:01:01]} 10. Qd2 {[%emt 0:00:09]} Qa5 {[%emt 0:01:
48]} 11. Nc3 {[%emt 0:03:43]} d6 {[%emt 0:02:56]} 12. e4 {[%emt 0:05:25]} Be6 {
[%emt 0:03:22]} 13. Kb1 {[%emt 0:01:49]} a6 {[%emt 0:04:54]} 14. f4 {[%emt 0:
01:45]} f5 {[%emt 0:01:13]} 15. Bd3 {[%emt 0:04:33]} Rac8 {[%emt 0:02:36]} 16.
exf5 {[%emt 0:02:02]} Bxf5 {[%emt 0:01:55]} 17. Bc4+ {[%emt 0:01:51]} Kg7 {
[%emt 0:00:26]} 18. h3 {[%emt 0:00:33]} b5 {[%emt 0:06:15]} 19. Bb3 {[%emt 0:
00:54]} Qb4 {[%emt 0:08:14]} 20. g4 {[%emt 0:01:43]} Bd7 {[%emt 0:00:32]} 21.
Rhf1 {[%emt 0:01:14]} a5 {[%emt 0:04:21]} 22. a3 {[%emt 0:02:55]} Qc5 {[%emt 0:
01:55]} 23. Ne4 {[%emt 0:06:37]} Qb6 {[%emt 0:03:34]} 24. f5 {[%emt 0:02:38]}
Ne5 {[%emt 0:10:51]} 25. Qg5 {[%emt 0:04:09]} Qd8 {[%emt 0:01:39]} 26. Rxd6 {
[%emt 0:13:25]} Rc6 {[%emt 0:12:30]} 27. Rd5 {[%emt 0:02:33]} Nc4 {[%emt 0:14:
57]} 28. Rfd1 {[%emt 0:02:55]} h6 {[%emt 0:04:17]} 29. Qc1 {[%emt 0:00:10]} Nb6
{[%emt 0:00:26]} 30. Rxd7 {[%emt 0:01:35]} Nxd7 {[%emt 0:00:16]} 31. Be6 {
[%emt 0:00:05]} Rc7 {[%emt 0:01:09]} 32. Qd2 {[%emt 0:01:50]} Qa8 {[%emt 0:00:
02]} 33. Bd5 {[%emt 0:06:17]} Qa7 {[%emt 0:00:23]} 34. g5 {[%emt 0:01:22]} h5 {
[%emt 0:03:58]} 35. fxg6 {[%emt 0:01:00]} Ne5 {[%emt 0:00:49]} 36. Bf7 {
[%emt 0:00:27]} Nxf7 {[%emt 0:00:29]} 37. gxf7 {[%emt 0:00:22]} Rxf7 {[%emt 0:
00:26]} 38. Qd5 {[%emt 0:01:50]} Qb6 {[%emt 0:01:37]} 39. Qe5+ {[%emt 0:00:44]}
Kh7 {[%emt 0:00:56]} 40. g6+ {[%emt 0:00:00]} Kxg6 {[%emt 0:00:00]} 41. Qg5+ {
[%emt 0:00:00]} Kh7 {[%emt 0:00:00]} 42. Rg1 {[%emt 0:00:00]} e5 {[%emt 0:00:
00]} 43. Qxh5+ {[%emt 0:00:00]} 1-0

[Event "African Championship"]
[Site "followchess.com"]
[Date "2021.05.25"]
[Round "7"]
[White "Amin, Bassem"]
[Black "Rakotomaharo, Fy Antenaina"]
[Result "1-0"]
[ECO "A07"]
[WhiteElo "2701"]
[BlackElo "2429"]
[PlyCount "53"]
[EventDate "2021.??.??"]
[TimeControl "7200+30"]
[WhiteClock "0:00:38"]
[BlackClock "0:12:17"]

1. Nf3 d5 {[%emt 0:30:11]} 2. g3 {[%emt 0:35:34]} Nc6 {[%emt 0:00:13]} 3. d4 {
[%emt 0:01:01]} Bf5 {[%emt 0:00:07]} 4. Bg2 {[%emt 0:00:12]} Nb4 {[%emt 0:00:
06]} 5. Na3 {[%emt 0:00:07]} e6 {[%emt 0:00:05]} 6. O-O {[%emt 0:00:58]} h5 {
[%emt 0:00:13]} 7. c3 {[%emt 0:01:33]} Nc6 {[%emt 0:00:06]} 8. Qb3 {[%emt 0:05:
12]} a6 {[%emt 0:08:25]} 9. Ne5 {[%emt 0:05:57]} Bxa3 {[%emt 0:13:57]} 10. Nxc6
{[%emt 0:09:22]} bxc6 {[%emt 0:00:06]} 11. Qxa3 {[%emt 0:00:17]} h4 {[%emt 0:
00:22]} 12. Qa5 {[%emt 0:02:13]} Ne7 {[%emt 0:11:41]} 13. Bf4 {[%emt 0:11:21]}
Ra7 {[%emt 0:03:22]} 14. b3 {[%emt 0:07:07]} f6 {[%emt 0:07:53]} 15. Rae1 {
[%emt 0:01:33]} Kf7 {[%emt 0:04:01]} 16. c4 {[%emt 0:15:56]} g5 {[%emt 0:19:41]
} 17. Bc1 {[%emt 0:00:32]} Rb7 {[%emt 0:00:09]} 18. Ba3 {[%emt 0:06:55]} hxg3 {
[%emt 0:03:58]} 19. fxg3 {[%emt 0:01:07]} Bh3 {[%emt 0:17:40]} 20. Bxh3 {
[%emt 0:04:39]} Rxh3 {[%emt 0:00:08]} 21. e4 {[%emt 0:01:00]} dxc4 {[%emt 0:05:
31]} 22. Rxf6+ {[%emt 0:06:44]} Kxf6 {[%emt 0:00:32]} 23. Rf1+ {[%emt 0:00:02]}
Kg6 {[%emt 0:01:32]} 24. Qe5 {[%emt 0:00:02]} Ng8 {[%emt 0:00:43]} 25. Rf8 {
[%emt 0:01:30]} Qxf8 {[%emt 0:01:08]} 26. Bxf8 {[%emt 0:00:03]} Nf6 {[%emt 0:
00:32]} 27. Be7 {[%emt 0:00:16]} 1-0

[Event "African Championship"]
[Site "followchess.com"]
[Date "2021.05.25"]
[Round "7"]
[White "Barrish, Daniel"]
[Black "Nassr, Ali"]
[Result "1-0"]
[ECO "D45"]
[WhiteElo "2306"]
[BlackElo "2232"]
[PlyCount "93"]
[EventDate "2021.??.??"]
[TimeControl "7200+30"]
[WhiteClock "0:19:56"]
[BlackClock "0:12:24"]

1. d4 {[%emt 0:32:37]} d5 {[%emt 0:29:52]} 2. c4 {[%emt 0:00:21]} c6 {[%emt 0:
00:15]} 3. Nc3 {[%emt 0:00:22]} Nf6 {[%emt 0:00:23]} 4. Nf3 {[%emt 0:00:17]} e6
{[%emt 0:01:49]} 5. e3 {[%emt 0:01:18]} Nbd7 {[%emt 0:00:23]} 6. Qc2 {[%emt 0:
00:08]} Bd6 {[%emt 0:00:55]} 7. Bd3 {[%emt 0:00:12]} O-O {[%emt 0:00:23]} 8.
O-O {[%emt 0:00:08]} h6 {[%emt 0:00:41]} 9. b3 {[%emt 0:01:40]} b6 {[%emt 0:02:
27]} 10. Bb2 {[%emt 0:01:57]} Bb7 {[%emt 0:01:00]} 11. Rfd1 {[%emt 0:04:43]}
Qe7 {[%emt 0:03:23]} 12. Rac1 {[%emt 0:01:58]} Rac8 {[%emt 0:06:35]} 13. Qe2 {
[%emt 0:02:49]} Rfe8 {[%emt 0:26:25]} 14. cxd5 {[%emt 0:12:19]} exd5 {[%emt 0:
00:34]} 15. Nh4 {[%emt 0:01:02]} g6 {[%emt 0:00:54]} 16. g3 {[%emt 0:00:42]}
Nf8 {[%emt 0:06:13]} 17. Re1 {[%emt 0:03:23]} Ne4 {[%emt 0:11:52]} 18. Ng2 {
[%emt 0:09:49]} Nh7 {[%emt 0:00:39]} 19. f3 {[%emt 0:06:34]} Nxc3 {[%emt 0:01:
13]} 20. Bxc3 {[%emt 0:00:06]} Bb4 {[%emt 0:02:17]} 21. Bxb4 {[%emt 0:04:18]}
Qxb4 {[%emt 0:00:05]} 22. Qb2 {[%emt 0:06:53]} Qd6 {[%emt 0:02:06]} 23. b4 {
[%emt 0:02:02]} Re7 {[%emt 0:03:15]} 24. Rf1 {[%emt 0:06:52]} Rce8 {[%emt 0:04:
10]} 25. a4 {[%emt 0:01:30]} Bc8 {[%emt 0:01:22]} 26. Rc3 {[%emt 0:09:34]} Bh3
{[%emt 0:02:55]} 27. Rfc1 {[%emt 0:00:17]} Bxg2 {[%emt 0:07:10]} 28. Kxg2 {
[%emt 0:03:08]} Rxe3 {[%emt 0:00:38]} 29. Rxc6 {[%emt 0:00:26]} Qd7 {[%emt 0:
00:10]} 30. Rc7 {[%emt 0:02:49]} Qd6 {[%emt 0:04:42]} 31. R1c6 {[%emt 0:04:02]}
Qf8 {[%emt 0:00:26]} 32. Bb5 {[%emt 0:02:36]} Ra8 {[%emt 0:03:52]} 33. Qc2 {
[%emt 0:03:51]} Qg7 {[%emt 0:02:30]} 34. Qd2 {[%emt 0:01:28]} Ra3 {[%emt 0:01:
04]} 35. Qb2 {[%emt 0:01:50]} Re3 {[%emt 0:00:29]} 36. Rd6 {[%emt 0:01:03]} Ng5
{[%emt 0:00:22]} 37. Bc6 {[%emt 0:00:57]} Rf8 {[%emt 0:01:11]} 38. Bxd5 {
[%emt 0:01:23]} Rfe8 {[%emt 0:00:06]} 39. Rc2 {[%emt 0:00:26]} Qf8 {[%emt 0:01:
08]} 40. Rxg6+ {[%emt 0:00:00]} Kh7 {[%emt 0:00:00]} 41. Rf6 {[%emt 0:00:00]}
Qe7 {[%emt 0:00:00]} 42. Rf5 {[%emt 0:00:00]} Qd7 {[%emt 0:00:00]} 43. g4 {
[%emt 0:00:00]} R8e7 {[%emt 0:00:00]} 44. h4 {[%emt 0:00:00]} Ne6 {[%emt 0:00:
00]} 45. Bxe6 {[%emt 0:00:00]} fxe6 {[%emt 0:00:00]} 46. Re5 {[%emt 0:00:00]}
Rd3 {[%emt 0:00:00]} 47. Rd2 {[%emt 0:00:00]} 1-0

[Event "African Championship"]
[Site "followchess.com"]
[Date "2021.05.25"]
[Round "7"]
[White "Bellahcene, Bilel"]
[Black "Mhango, Banele"]
[Result "1-0"]
[ECO "B98"]
[WhiteElo "2508"]
[BlackElo "2117"]
[PlyCount "83"]
[EventDate "2021.??.??"]
[TimeControl "7200+30"]
[WhiteClock "0:36:25"]
[BlackClock "0:28:26"]

1. e4 c5 {[%emt 0:29:53]} 2. Nf3 {[%emt 0:33:21]} d6 {[%emt 0:00:07]} 3. d4 {
[%emt 0:00:04]} cxd4 {[%emt 0:00:10]} 4. Nxd4 {[%emt 0:00:02]} Nf6 {[%emt 0:00:
08]} 5. Nc3 {[%emt 0:00:02]} a6 {[%emt 0:00:04]} 6. Bg5 {[%emt 0:00:05]} e6 {
[%emt 0:00:59]} 7. f4 {[%emt 0:00:03]} Be7 {[%emt 0:03:58]} 8. Qf3 {[%emt 0:00:
03]} Qc7 {[%emt 0:02:27]} 9. O-O-O {[%emt 0:00:18]} h6 {[%emt 0:03:33]} 10. Bh4
{[%emt 0:32:29]} Nbd7 {[%emt 0:02:39]} 11. Bd3 {[%emt 0:05:19]} g5 {[%emt 0:10:
39]} 12. fxg5 {[%emt 0:00:03]} Ne5 {[%emt 0:00:04]} 13. Qe2 {[%emt 0:01:47]}
Nfg4 {[%emt 0:00:15]} 14. Nf3 {[%emt 0:06:57]} Nxf3 {[%emt 0:04:52]} 15. gxf3 {
[%emt 0:00:39]} hxg5 {[%emt 0:02:00]} 16. fxg4 {[%emt 0:06:39]} Rxh4 {[%emt 0:
00:50]} 17. Rdf1 {[%emt 0:02:48]} Bd7 {[%emt 0:06:15]} 18. Kb1 {[%emt 0:07:18]}
Bc6 {[%emt 0:13:52]} 19. Rf3 {[%emt 0:01:54]} Rh7 {[%emt 0:05:10]} 20. Nd5 {
[%emt 0:03:09]} Qd8 {[%emt 0:04:40]} 21. Rhf1 {[%emt 0:00:45]} Rg7 {[%emt 0:00:
11]} 22. Rh3 {[%emt 0:08:26]} Kd7 {[%emt 0:01:35]} 23. Nxe7 {[%emt 0:00:17]}
Qxe7 {[%emt 0:01:52]} 24. e5 {[%emt 0:00:05]} d5 {[%emt 0:13:30]} 25. Qf2 {
[%emt 0:00:16]} Kc7 {[%emt 0:00:26]} 26. Rf3 {[%emt 0:00:53]} Rf8 {[%emt 0:02:
29]} 27. Rf6 {[%emt 0:03:03]} Qb4 {[%emt 0:07:24]} 28. h3 {[%emt 0:01:49]} Qb6
{[%emt 0:01:19]} 29. Rxe6 {[%emt 0:06:14]} Qxf2 {[%emt 0:00:45]} 30. Rxf2 {
[%emt 0:00:03]} Re8 {[%emt 0:02:46]} 31. Rxe8 {[%emt 0:01:40]} Bxe8 {[%emt 0:
00:05]} 32. Rf6 {[%emt 0:00:44]} Rg8 {[%emt 0:00:53]} 33. c3 {[%emt 0:00:25]}
Rh8 {[%emt 0:00:09]} 34. Bf1 {[%emt 0:00:04]} Rh7 {[%emt 0:00:39]} 35. Kc2 {
[%emt 0:00:47]} Bd7 {[%emt 0:00:19]} 36. Kd3 {[%emt 0:03:53]} Be6 {[%emt 0:00:
24]} 37. Kd4 {[%emt 0:01:01]} Rh8 {[%emt 0:00:10]} 38. Bg2 {[%emt 0:00:10]} b5
{[%emt 0:03:05]} 39. Rf3 {[%emt 0:03:40]} Kb6 {[%emt 0:00:19]} 40. Bf1 {
[%emt 0:00:00]} a5 {[%emt 0:00:00]} 41. Bd3 {[%emt 0:00:00]} Rc8 {[%emt 0:00:
00]} 42. Rf6 {[%emt 0:00:00]} 1-0

[Event "African Championship"]
[Site "followchess.com"]
[Date "2021.05.25"]
[Round "7"]
[White "Chimkute Ronald"]
[Black "Talbi, Chafik"]
[Result "0-1"]
[ECO "D52"]
[WhiteElo "1955"]
[BlackElo "2244"]
[PlyCount "37"]
[EventDate "2021.??.??"]
[TimeControl "7200+30"]
[WhiteClock "0:55:55"]
[BlackClock "1:09:36"]

1. d4 {[%emt 0:29:43]} Nf6 {[%emt 0:39:47]} 2. c4 {[%emt 0:00:15]} e6 {[%emt 0:
02:46]} 3. Nc3 {[%emt 0:00:15]} d5 {[%emt 0:01:01]} 4. Bg5 {[%emt 0:00:42]}
Nbd7 {[%emt 0:00:49]} 5. e3 {[%emt 0:01:03]} c6 {[%emt 0:00:10]} 6. Nf3 {
[%emt 0:00:20]} Bb4 {[%emt 0:00:26]} 7. Bd3 {[%emt 0:00:24]} Qa5 {[%emt 0:00:
16]} 8. Qc2 {[%emt 0:02:47]} Ne4 {[%emt 0:12:28]} 9. Bxe4 {[%emt 0:13:41]} dxe4
{[%emt 0:00:39]} 10. Qxe4 {[%emt 0:00:14]} Bxc3+ {[%emt 0:00:10]} 11. bxc3 {
[%emt 0:00:19]} Qxc3+ {[%emt 0:00:08]} 12. Ke2 {[%emt 0:00:29]} Qxc4+ {[%emt 0:
00:15]} 13. Qd3 {[%emt 0:01:01]} Qxd3+ {[%emt 0:06:12]} 14. Kxd3 {[%emt 0:00:
02]} b6 {[%emt 0:00:17]} 15. Bf4 {[%emt 0:01:45]} Ba6+ {[%emt 0:00:26]} 16. Kd2
{[%emt 0:00:30]} c5 {[%emt 0:06:22]} 17. Bd6 {[%emt 0:01:33]} cxd4 {[%emt 0:00:
29]} 18. exd4 {[%emt 0:01:18]} Nf6 {[%emt 0:00:24]} 19. h3 {[%emt 0:03:33]} 0-1

[Event "African Championship"]
[Site "followchess.com"]
[Date "2021.05.25"]
[Round "7"]
[White "Hesham, Abdelrahman"]
[Black "Osunfuyi, Abimbola"]
[Result "1-0"]
[ECO "D30"]
[WhiteElo "2400"]
[BlackElo "2246"]
[PlyCount "65"]
[EventDate "2021.??.??"]
[TimeControl "7200+30"]
[WhiteClock "0:04:22"]
[BlackClock "0:11:43"]

1. d4 {[%emt 0:30:16]} d5 {[%emt 0:34:03]} 2. c4 {[%emt 0:00:06]} c6 {[%emt 0:
00:08]} 3. Nf3 {[%emt 0:00:12]} Nf6 {[%emt 0:00:17]} 4. e3 {[%emt 0:00:12]} e6
{[%emt 0:02:23]} 5. Bd3 {[%emt 0:01:26]} Nbd7 {[%emt 0:01:01]} 6. O-O {[%emt 0:
00:32]} dxc4 {[%emt 0:03:12]} 7. Bxc4 {[%emt 0:00:08]} b5 {[%emt 0:02:18]} 8.
Bd3 {[%emt 0:00:38]} Bd6 {[%emt 0:00:48]} 9. a4 {[%emt 0:00:31]} b4 {[%emt 0:
05:45]} 10. Nbd2 {[%emt 0:00:28]} O-O {[%emt 0:00:47]} 11. e4 {[%emt 0:04:08]}
e5 {[%emt 0:12:38]} 12. Nc4 {[%emt 0:01:03]} Qe7 {[%emt 0:04:44]} 13. Nxd6 {
[%emt 0:14:42]} Qxd6 {[%emt 0:00:11]} 14. Re1 {[%emt 0:00:25]} Rd8 {[%emt 0:04:
33]} 15. Bg5 {[%emt 0:01:21]} c5 {[%emt 0:07:57]} 16. d5 {[%emt 0:07:37]} Ba6 {
[%emt 0:05:23]} 17. Qe2 {[%emt 0:01:16]} Bxd3 {[%emt 0:01:34]} 18. Qxd3 {
[%emt 0:00:07]} Rdc8 {[%emt 0:00:19]} 19. Nd2 {[%emt 0:00:36]} Ne8 {[%emt 0:06:
05]} 20. Nc4 {[%emt 0:01:18]} Qg6 {[%emt 0:00:15]} 21. Be7 {[%emt 0:00:23]} f6
{[%emt 0:05:28]} 22. d6 {[%emt 0:04:34]} Qf7 {[%emt 0:00:14]} 23. f4 {[%emt 0:
04:28]} exf4 {[%emt 0:01:33]} 24. e5 {[%emt 0:00:17]} fxe5 {[%emt 0:05:41]} 25.
Nxe5 {[%emt 0:00:09]} c4 {[%emt 0:01:12]} 26. Qd4 {[%emt 0:14:24]} Nxe5 {
[%emt 0:06:05]} 27. Rxe5 {[%emt 0:00:09]} Nf6 28. Rf1 {[%emt 0:12:31]} c3 {
[%emt 0:01:55]} 29. Qxb4 {[%emt 0:01:36]} Rab8 {[%emt 0:08:59]} 30. Rc5 {
[%emt 0:14:35]} Nd5 {[%emt 0:02:19]} 31. d7 {[%emt 0:02:15]} Nxe7 {[%emt 0:03:
22]} 32. Rxc8+ {[%emt 0:02:15]} Rxc8 {[%emt 0:00:29]} 33. Qxe7 {[%emt 0:00:09]}
1-0

[Event "African Championship"]
[Site "followchess.com"]
[Date "2021.05.25"]
[Round "7"]
[White "Kawuma, Patrick"]
[Black "Fawzy, Adham"]
[Result "0-1"]
[ECO "A36"]
[WhiteElo "2323"]
[BlackElo "2473"]
[PlyCount "110"]
[EventDate "2021.??.??"]
[TimeControl "7200+30"]
[WhiteClock "1:05:21"]
[BlackClock "0:12:04"]

1. c4 {[%emt 0:29:34]} c5 {[%emt 0:30:35]} 2. Nc3 {[%emt 0:00:41]} Nc6 {
[%emt 0:00:12]} 3. g3 {[%emt 0:00:33]} g6 {[%emt 0:00:05]} 4. Bg2 {[%emt 0:00:
13]} Bg7 {[%emt 0:00:02]} 5. a3 {[%emt 0:01:09]} e5 {[%emt 0:02:56]} 6. e4 {
[%emt 0:00:45]} Nge7 {[%emt 0:00:10]} 7. Nge2 {[%emt 0:00:08]} d6 {[%emt 0:00:
09]} 8. d3 {[%emt 0:00:27]} a6 {[%emt 0:03:02]} 9. Rb1 {[%emt 0:00:19]} Rb8 {
[%emt 0:00:56]} 10. b4 {[%emt 0:00:21]} cxb4 {[%emt 0:00:04]} 11. axb4 {
[%emt 0:00:11]} b5 {[%emt 0:00:02]} 12. cxb5 {[%emt 0:00:11]} axb5 {[%emt 0:00:
02]} 13. O-O {[%emt 0:00:10]} O-O {[%emt 0:01:14]} 14. Bg5 {[%emt 0:01:33]} h6
{[%emt 0:04:45]} 15. Be3 {[%emt 0:05:36]} Nd4 {[%emt 0:02:50]} 16. Qd2 {
[%emt 0:00:49]} Kh7 {[%emt 0:00:25]} 17. f4 {[%emt 0:00:53]} Be6 {[%emt 0:02:
52]} 18. Bf2 {[%emt 0:07:24]} d5 {[%emt 0:02:54]} 19. Nxd4 {[%emt 0:22:38]}
exd4 {[%emt 0:00:17]} 20. Ne2 {[%emt 0:00:06]} dxe4 {[%emt 0:08:29]} 21. dxe4 {
[%emt 0:00:12]} d3 {[%emt 0:00:43]} 22. Nc1 {[%emt 0:00:21]} Ra8 {[%emt 0:01:
05]} 23. e5 {[%emt 0:15:40]} Ra3 {[%emt 0:00:47]} 24. Bc5 {[%emt 0:13:54]} Nd5
{[%emt 0:09:33]} 25. Qb2 {[%emt 0:08:29]} Rc3 {[%emt 0:03:05]} 26. Rf2 {
[%emt 0:03:42]} Rc2 {[%emt 0:07:37]} 27. Rxc2 {[%emt 0:07:53]} dxc2 {[%emt 0:
00:01]} 28. Qxc2 {[%emt 0:00:17]} Bf5 {[%emt 0:00:07]} 29. Qb3 {[%emt 0:00:16]}
Nc3 {[%emt 0:00:37]} 30. Rb2 {[%emt 0:02:52]} Na4 {[%emt 0:01:25]} 31. Bxf8 {
[%emt 0:00:26]} Nxb2 {[%emt 0:01:03]} 32. Qxb2 {[%emt 0:07:43]} Qd1+ {[%emt 0:
00:44]} 33. Kf2 {[%emt 0:00:11]} Bxf8 {[%emt 0:00:19]} 34. Ne2 {[%emt 0:00:10]}
Qa4 {[%emt 0:02:01]} 35. Nd4 {[%emt 0:00:49]} Bd3 {[%emt 0:02:45]} 36. Qb3 {
[%emt 0:00:52]} Bc4 {[%emt 0:00:11]} 37. Qxa4 {[%emt 0:00:16]} bxa4 {[%emt 0:
00:02]} 38. Nc2 {[%emt 0:00:44]} Bd3 {[%emt 0:00:00]} 39. Ne1 {[%emt 0:00:30]}
Bb1 {[%emt 0:03:09]} 40. Bd5 {[%emt 0:00:00]} Bxb4 {[%emt 0:00:00]} 41. Bxf7 {
[%emt 0:00:00]} Bxe1+ {[%emt 0:00:00]} 42. Kxe1 {[%emt 0:00:00]} a3 {[%emt 0:
00:00]} 43. Kd2 {[%emt 0:00:00]} a2 {[%emt 0:00:00]} 44. Bxa2 {[%emt 0:00:00]}
Bxa2 {[%emt 0:00:00]} 45. Ke3 {[%emt 0:00:00]} Be6 {[%emt 0:00:00]} 46. Kd4 {
[%emt 0:00:00]} Kg7 {[%emt 0:00:00]} 47. Kc5 {[%emt 0:00:00]} Kf7 {[%emt 0:00:
00]} 48. Kd6 {[%emt 0:00:00]} h5 {[%emt 0:00:00]} 49. Kc6 {[%emt 0:00:00]} Ke7
{[%emt 0:00:00]} 50. Kc7 {[%emt 0:00:00]} Bd5 {[%emt 0:00:00]} 51. Kc8 {
[%emt 0:00:00]} g5 {[%emt 0:00:00]} 52. fxg5 {[%emt 0:00:00]} Ke6 {[%emt 0:00:
00]} 53. Kd8 {[%emt 0:00:00]} Kxe5 {[%emt 0:00:00]} 54. h3 {[%emt 0:00:00]} Be6
{[%emt 0:00:00]} 55. g4 {[%emt 0:00:00]} Bxg4 {[%emt 0:00:00]} 0-1